[Event "Titled Tuesday Blitz July 11 Late 2023"]
[White "K2JW"]
[Black "Aggelis, Nikolaos"]
[BlackFideId "4213220"]
[WhiteElo "2383"]
[BlackElo "2536"]
[Result "0-1"]
[Round "6"]
[TimeControl "180+2"]
[Date "2023.07.11"]
[WhiteClock "0:00:00"]
[BlackClock "0:00:14"]
[Board "90"]

1. d4 {[%clk 0:03:00]}  f5 {[%clk 0:02:58]} 2. c4 {[%clk 0:02:59]}  Nf6 {[%clk 0:02:52]} 3. g3 {[%clk 0:02:59]}  g6 {[%clk 0:02:52]} 4. Bg2 {[%clk 0:02:59]}  Bg7 {[%clk 0:02:53]} 5. Nf3 {[%clk 0:02:59]}  O-O {[%clk 0:02:53]} 6. O-O {[%clk 0:03:00]}  d6 {[%clk 0:02:54]} 7. Nc3 {[%clk 0:02:59]}  c6 {[%clk 0:02:55]} 8. d5 {[%clk 0:02:59]}  e5 {[%clk 0:02:54]} 9. dxe6 {[%clk 0:02:59]}  Bxe6 {[%clk 0:02:54]} 10. b3 {[%clk 0:03:00]}  Ne4 {[%clk 0:02:46]} 11. Nxe4 {[%clk 0:02:59]}  Bxa1 {[%clk 0:02:19]} 12. Nxd6 {[%clk 0:02:59]}  Bf6 {[%clk 0:02:08]} 13. Nxb7 {[%clk 0:02:50]}  Qb6 {[%clk 0:01:53]} 14. Qd6 {[%clk 0:02:03]}  Qxb7 {[%clk 0:01:45]} 15. Qxe6+ {[%clk 0:02:03]}  Qf7 {[%clk 0:01:46]} 16. Ng5 {[%clk 0:01:45]}  Bxg5 {[%clk 0:01:46]} 17. Qxf7+ {[%clk 0:01:45]}  Kxf7 {[%clk 0:01:39]} 18. Bxg5 {[%clk 0:01:45]}  Re8 {[%clk 0:01:39]} 19. Be3 {[%clk 0:01:36]}  Rd8 {[%clk 0:01:32]} 20. Rc1 {[%clk 0:01:12]}  a5 {[%clk 0:01:31]} 21. Kf1 {[%clk 0:00:50]}  Ra6 {[%clk 0:01:30]} 22. Ke1 {[%clk 0:00:38]}  Nd7 {[%clk 0:01:18]} 23. Rd1 {[%clk 0:00:36]}  Ke8 {[%clk 0:01:14]} 24. Bg5 {[%clk 0:00:28]}  Rb8 {[%clk 0:01:14]} 25. Rd6 {[%clk 0:00:28]}  Rbb6 {[%clk 0:00:43]} 26. Re6+ {[%clk 0:00:23]}  Kf8 {[%clk 0:00:42]} 27. Re7 {[%clk 0:00:22]}  h6 {[%clk 0:00:41]} 28. Rxd7 {[%clk 0:00:18]}  hxg5 {[%clk 0:00:40]} 29. Rd6 {[%clk 0:00:10]}  a4 {[%clk 0:00:38]} 30. c5 {[%clk 0:00:09]}  axb3 {[%clk 0:00:34]} 31. axb3 {[%clk 0:00:08]}  Rxb3 {[%clk 0:00:30]} 32. Rxg6 {[%clk 0:00:07]}  Ra1+ {[%clk 0:00:23]} 33. Kd2 {[%clk 0:00:06]}  Ra2+ {[%clk 0:00:24]} 34. Kc1 {[%clk 0:00:05]}  Rc3+ {[%clk 0:00:22]} 35. Kd1 {[%clk 0:00:04]}  Rxc5 {[%clk 0:00:16]} 36. Rxc6 {[%clk 0:00:02]}  Rxc6 {[%clk 0:00:15]} 37. Bxc6 {[%clk 0:00:03]}  Ke7 {[%clk 0:00:15]} 38. Bf3 {[%clk 0:00:03]}  Kf6 {[%clk 0:00:15]} 39. Ke1 {[%clk 0:00:03]}  g4 {[%clk 0:00:15]} 40. Bg2 {[%clk 0:00:03]}  Ra1+ {[%clk 0:00:16]} 41. Kd2 {[%clk 0:00:03]}  Rg1 {[%clk 0:00:16]} 42. Bc6 {[%clk 0:00:03]}  Kg5 {[%clk 0:00:16]} 43. Ke3 {[%clk 0:00:02]}  Rc1 {[%clk 0:00:15]} 44. Bg2 {[%clk 0:00:02]}  Rc7 {[%clk 0:00:15]} 45. Kd2 {[%clk 0:00:02]}  Rh7 {[%clk 0:00:15]} 46. h4+ {[%clk 0:00:01]}  gxh3 {[%clk 0:00:14]} 47. Bh1 {[%clk 0:00:00]}  f4 {[%clk 0:00:14]} 0-1


[Site "https://www.chess.com"]

[Event "Titled Tuesday Blitz July 11 Late 2023"]
[White "Thorfinnsson, Bragi"]
[Black "GAO"]
[WhiteFideId "2300958"]
[WhiteElo "2533"]
[BlackElo "2388"]
[Result "0-1"]
[Round "6"]
[TimeControl "180+2"]
[Date "2023.07.11"]
[WhiteClock "0:00:00"]
[BlackClock "0:00:11"]
[Board "91"]

1. d4 {[%clk 0:03:00]}  Nf6 {[%clk 0:02:58]} 2. Bg5 {[%clk 0:03:00]}  e6 {[%clk 0:02:57]} 3. Nd2 {[%clk 0:02:59]}  d5 {[%clk 0:02:56]} 4. e3 {[%clk 0:02:47]}  Be7 {[%clk 0:02:55]} 5. c3 {[%clk 0:02:43]}  O-O {[%clk 0:02:55]} 6. f4 {[%clk 0:02:43]}  Ne4 {[%clk 0:02:52]} 7. Nxe4 {[%clk 0:02:37]}  dxe4 {[%clk 0:02:50]} 8. Bxe7 {[%clk 0:02:28]}  Qxe7 {[%clk 0:02:49]} 9. Qc2 {[%clk 0:02:29]}  f5 {[%clk 0:02:47]} 10. O-O-O {[%clk 0:02:26]}  a5 {[%clk 0:02:43]} 11. g4 {[%clk 0:02:24]}  a4 {[%clk 0:02:42]} 12. a3 {[%clk 0:02:17]}  Nc6 {[%clk 0:02:27]} 13. Ne2 {[%clk 0:02:08]}  Na5 {[%clk 0:02:07]} 14. Ng3 {[%clk 0:02:03]}  Bd7 {[%clk 0:01:58]} 15. Rg1 {[%clk 0:01:55]}  Kh8 {[%clk 0:01:57]} 16. d5 {[%clk 0:01:22]}  exd5 {[%clk 0:01:36]} 17. Rxd5 {[%clk 0:01:20]}  Nb3+ {[%clk 0:01:27]} 18. Kb1 {[%clk 0:01:19]}  Rad8 {[%clk 0:01:27]} 19. Bc4 {[%clk 0:00:50]}  Be6 {[%clk 0:01:09]} 20. Rxd8 {[%clk 0:00:45]}  Rxd8 {[%clk 0:01:07]} 21. Bxe6 {[%clk 0:00:42]}  Qxe6 {[%clk 0:00:48]} 22. Rd1 {[%clk 0:00:41]}  Rd5 {[%clk 0:00:40]} 23. Nxf5 {[%clk 0:00:30]}  Qd7 {[%clk 0:00:32]} 24. Rxd5 {[%clk 0:00:18]}  Qxd5 {[%clk 0:00:33]} 25. Nd4 {[%clk 0:00:18]}  Qc4 {[%clk 0:00:28]} 26. Qd1 {[%clk 0:00:10]}  Nc5 {[%clk 0:00:22]} 27. Nc2 {[%clk 0:00:02]}  Nd3 {[%clk 0:00:19]} 28. Nb4 {[%clk 0:00:02]}  g5 {[%clk 0:00:16]} 29. f5 {[%clk 0:00:00]}  Nxb4 {[%clk 0:00:11]} 0-1


[Site "https://www.chess.com"]

[Event "Titled Tuesday Blitz July 11 Late 2023"]
[White "Mattheii"]
[Black "Vujacic, Igor"]
[BlackFideId "932620"]
[WhiteElo "2523"]
[BlackElo "2211"]
[Result "0-1"]
[Round "6"]
[TimeControl "180+2"]
[Date "2023.07.11"]
[WhiteClock "0:00:23"]
[BlackClock "0:00:21"]
[Board "92"]

1. c4 {[%clk 0:03:00]}  e6 {[%clk 0:02:59]} 2. d4 {[%clk 0:02:59]}  d5 {[%clk 0:02:59]} 3. Nc3 {[%clk 0:02:59]}  a6 {[%clk 0:02:59]} 4. cxd5 {[%clk 0:02:58]}  exd5 {[%clk 0:03:00]} 5. Qb3 {[%clk 0:02:54]}  c5 {[%clk 0:02:54]} 6. Nf3 {[%clk 0:02:33]}  c4 {[%clk 0:02:37]} 7. Qc2 {[%clk 0:02:33]}  Nc6 {[%clk 0:02:37]} 8. e4 {[%clk 0:02:30]}  Nb4 {[%clk 0:02:21]} 9. Qb1 {[%clk 0:02:26]}  b5 {[%clk 0:02:05]} 10. a3 {[%clk 0:02:24]}  Nc6 {[%clk 0:02:03]} 11. Nxd5 {[%clk 0:02:17]}  Be6 {[%clk 0:01:36]} 12. Nf4 {[%clk 0:01:54]}  Nxd4 {[%clk 0:01:35]} 13. Nxd4 {[%clk 0:01:54]}  Qxd4 {[%clk 0:01:35]} 14. Nxe6 {[%clk 0:01:53]}  fxe6 {[%clk 0:01:35]} 15. Be3 {[%clk 0:01:54]}  Qe5 {[%clk 0:01:21]} 16. Be2 {[%clk 0:01:42]}  Bc5 {[%clk 0:01:19]} 17. Bxc5 {[%clk 0:01:36]}  Qxc5 {[%clk 0:01:20]} 18. O-O {[%clk 0:01:37]}  Nf6 {[%clk 0:01:18]} 19. e5 {[%clk 0:01:25]}  Nd7 {[%clk 0:00:51]} 20. Bg4 {[%clk 0:00:56]}  Qe7 {[%clk 0:00:41]} 21. Qe4 {[%clk 0:00:52]}  O-O {[%clk 0:00:37]} 22. f4 {[%clk 0:00:46]}  Nc5 {[%clk 0:00:35]} 23. Qe3 {[%clk 0:00:43]}  Rad8 {[%clk 0:00:28]} 24. Rad1 {[%clk 0:00:41]}  Nd3 {[%clk 0:00:28]} 25. b3 {[%clk 0:00:36]}  Rfe8 {[%clk 0:00:23]} 26. bxc4 {[%clk 0:00:36]}  bxc4 {[%clk 0:00:24]} 27. Qe4 {[%clk 0:00:34]}  Qc5+ {[%clk 0:00:22]} 28. Kh1 {[%clk 0:00:30]}  Nf2+ {[%clk 0:00:22]} 29. Rxf2 {[%clk 0:00:29]}  Rxd1+ {[%clk 0:00:21]} 30. Bxd1 {[%clk 0:00:30]}  Qxf2 {[%clk 0:00:21]} 31. h3 {[%clk 0:00:25]}  Qf1+ {[%clk 0:00:20]} 32. Kh2 {[%clk 0:00:23]}  Qxd1 {[%clk 0:00:21]} 0-1


[Site "https://www.chess.com"]

[Event "Titled Tuesday Blitz July 11 Late 2023"]
[White "Schnaider, Ilan"]
[Black "Cooper, Aaron"]
[WhiteFideId "169013"]
[BlackFideId "2634945"]
[WhiteElo "2645"]
[BlackElo "2249"]
[Result "0-1"]
[Round "6"]
[TimeControl "180+2"]
[Date "2023.07.11"]
[WhiteClock "0:00:00"]
[BlackClock "0:00:59"]
[Board "93"]

1. e4 {[%clk 0:02:18]}  c5 {[%clk 0:02:59]} 2. Nf3 {[%clk 0:02:18]}  d6 {[%clk 0:02:59]} 3. d4 {[%clk 0:02:18]}  cxd4 {[%clk 0:03:00]} 4. Nxd4 {[%clk 0:02:19]}  Nf6 {[%clk 0:03:00]} 5. Nc3 {[%clk 0:02:20]}  g6 {[%clk 0:03:00]} 6. Bc4 {[%clk 0:02:17]}  Nc6 {[%clk 0:02:46]} 7. O-O {[%clk 0:02:14]}  Bg7 {[%clk 0:02:45]} 8. Nxc6 {[%clk 0:02:07]}  bxc6 {[%clk 0:02:44]} 9. f3 {[%clk 0:02:02]}  Qb6+ {[%clk 0:02:40]} 10. Kh1 {[%clk 0:02:01]}  O-O {[%clk 0:02:40]} 11. Qe1 {[%clk 0:02:01]}  Ba6 {[%clk 0:02:35]} 12. Be3 {[%clk 0:01:59]}  Qb7 {[%clk 0:02:35]} 13. Bxa6 {[%clk 0:01:57]}  Qxa6 {[%clk 0:02:36]} 14. Qh4 {[%clk 0:01:57]}  Rab8 {[%clk 0:02:30]} 15. f4 {[%clk 0:01:05]}  Rxb2 {[%clk 0:02:23]} 16. e5 {[%clk 0:01:04]}  Nd5 {[%clk 0:02:20]} 17. Nxd5 {[%clk 0:00:59]}  cxd5 {[%clk 0:02:21]} 18. Qxe7 {[%clk 0:00:58]}  Rxa2 {[%clk 0:02:14]} 19. Rae1 {[%clk 0:00:55]}  dxe5 {[%clk 0:02:03]} 20. fxe5 {[%clk 0:00:53]}  Rxc2 {[%clk 0:01:41]} 21. Bd4 {[%clk 0:00:40]}  Re2 {[%clk 0:01:36]} 22. Ra1 {[%clk 0:00:22]}  Qc4 {[%clk 0:01:31]} 23. Rad1 {[%clk 0:00:18]}  Rd2 {[%clk 0:01:28]} 24. e6 {[%clk 0:00:10]}  Rxd4 {[%clk 0:01:07]} 25. exf7+ {[%clk 0:00:06]}  Kh8 {[%clk 0:01:07]} 26. Rb1 {[%clk 0:00:04]}  Rf4 {[%clk 0:01:01]} 27. Rfe1 {[%clk 0:00:00]}  R4xf7 {[%clk 0:00:59]} 0-1


[Site "https://www.chess.com"]

[Event "Titled Tuesday Blitz July 11 Late 2023"]
[White "Vlassov, Nikolai"]
[Black "Krzywda, Andrzej"]
[WhiteFideId "4103360"]
[BlackFideId "1114565"]
[WhiteElo "2575"]
[BlackElo "2382"]
[Result "0-1"]
[Round "6"]
[TimeControl "180+2"]
[Date "2023.07.11"]
[WhiteClock "0:00:00"]
[BlackClock "0:00:09"]
[Board "94"]

1. e4 {[%clk 0:03:00]}  e5 {[%clk 0:02:59]} 2. Bc4 {[%clk 0:03:00]}  Nf6 {[%clk 0:02:57]} 3. d3 {[%clk 0:03:00]}  c6 {[%clk 0:02:57]} 4. Nf3 {[%clk 0:03:00]}  d5 {[%clk 0:02:57]} 5. Bb3 {[%clk 0:03:00]}  a5 {[%clk 0:02:57]} 6. Nc3 {[%clk 0:03:00]}  Bb4 {[%clk 0:02:41]} 7. a3 {[%clk 0:02:59]}  Bxc3+ {[%clk 0:02:41]} 8. bxc3 {[%clk 0:03:00]}  a4 {[%clk 0:02:36]} 9. Ba2 {[%clk 0:02:53]}  O-O {[%clk 0:02:33]} 10. Nxe5 {[%clk 0:02:37]}  dxe4 {[%clk 0:02:33]} 11. O-O {[%clk 0:02:28]}  exd3 {[%clk 0:02:26]} 12. cxd3 {[%clk 0:02:27]}  Na6 {[%clk 0:02:23]} 13. Qxa4 {[%clk 0:02:10]}  Nc7 {[%clk 0:02:20]} 14. Qh4 {[%clk 0:02:08]}  Qd6 {[%clk 0:02:11]} 15. Bf4 {[%clk 0:01:42]}  Qc5 {[%clk 0:02:11]} 16. Nxf7 {[%clk 0:01:32]}  Ncd5 {[%clk 0:02:05]} 17. Bd6 {[%clk 0:01:23]}  Qxc3 {[%clk 0:01:57]} 18. Bxf8 {[%clk 0:01:23]}  Kxf7 {[%clk 0:01:50]} 19. Bb4 {[%clk 0:01:14]}  Qxd3 {[%clk 0:01:47]} 20. Rad1 {[%clk 0:01:10]}  Qg6 {[%clk 0:01:43]} 21. Rfe1 {[%clk 0:01:00]}  Be6 {[%clk 0:01:42]} 22. h3 {[%clk 0:00:45]}  Re8 {[%clk 0:01:41]} 23. Bc5 {[%clk 0:00:38]}  Qc2 {[%clk 0:01:28]} 24. Bb1 {[%clk 0:00:36]}  Qxc5 {[%clk 0:01:27]} 25. a4 {[%clk 0:00:26]}  Qb4 {[%clk 0:01:19]} 26. Qg3 {[%clk 0:00:20]}  Qxa4 {[%clk 0:01:16]} 27. Bd3 {[%clk 0:00:20]}  Qf4 {[%clk 0:01:14]} 28. Rb1 {[%clk 0:00:14]}  Qxg3 {[%clk 0:01:13]} 29. fxg3 {[%clk 0:00:15]}  b5 {[%clk 0:01:12]} 30. Rec1 {[%clk 0:00:15]}  Rc8 {[%clk 0:01:08]} 31. g4 {[%clk 0:00:15]}  h6 {[%clk 0:01:08]} 32. Bf1 {[%clk 0:00:14]}  Ne4 {[%clk 0:01:07]} 33. Kh2 {[%clk 0:00:14]}  Nec3 {[%clk 0:01:04]} 34. Rb2 {[%clk 0:00:11]}  c5 {[%clk 0:01:01]} 35. Bxb5 {[%clk 0:00:09]}  Rb8 {[%clk 0:01:00]} 36. Rf2+ {[%clk 0:00:08]}  Nf6 {[%clk 0:00:53]} 37. Bd3 {[%clk 0:00:05]}  Rb3 {[%clk 0:00:46]} 38. Bc2 {[%clk 0:00:02]}  Ra3 {[%clk 0:00:45]} 39. Rf3 {[%clk 0:00:03]}  Nb5 {[%clk 0:00:40]} 40. Bd3 {[%clk 0:00:01]}  Nd4 {[%clk 0:00:31]} 41. Bg6+ {[%clk 0:00:01]}  Kxg6 {[%clk 0:00:31]} 42. Rxa3 {[%clk 0:00:02]}  c4 {[%clk 0:00:21]} 43. Ra4 {[%clk 0:00:01]}  Ne4 {[%clk 0:00:20]} 44. Rcxc4 {[%clk 0:00:01]}  Bxc4 {[%clk 0:00:11]} 45. Rxc4 {[%clk 0:00:02]}  Ne6 {[%clk 0:00:08]} 46. Rxe4 {[%clk 0:00:02]}  Ng5 {[%clk 0:00:09]} 47. Re5 {[%clk 0:00:02]}  Nf7 {[%clk 0:00:09]} 48. Ra5 {[%clk 0:00:03]}  Kh7 {[%clk 0:00:10]} 49. Ra6 {[%clk 0:00:03]}  Ne5 {[%clk 0:00:10]} 50. Kg3 {[%clk 0:00:03]}  Nd3 {[%clk 0:00:10]} 51. h4 {[%clk 0:00:04]}  Nc5 {[%clk 0:00:10]} 52. Ra7 {[%clk 0:00:05]}  Ne6 {[%clk 0:00:10]} 53. Kf3 {[%clk 0:00:05]}  Nd4+ {[%clk 0:00:10]} 54. Ke4 {[%clk 0:00:05]}  Ne6 {[%clk 0:00:11]} 55. Re7 {[%clk 0:00:04]}  Nc5+ {[%clk 0:00:11]} 56. Kd4 {[%clk 0:00:03]}  Nb3+ {[%clk 0:00:12]} 57. Kc4 {[%clk 0:00:03]}  Nd2+ {[%clk 0:00:12]} 58. Kc3 {[%clk 0:00:03]}  Nf1 {[%clk 0:00:12]} 59. Kd3 {[%clk 0:00:02]}  h5 {[%clk 0:00:11]} 60. gxh5 {[%clk 0:00:02]}  Ng3 {[%clk 0:00:11]} 61. h6 {[%clk 0:00:01]}  Kxh6 {[%clk 0:00:11]} 62. Ra7 {[%clk 0:00:00]}  Nf5 {[%clk 0:00:09]} 0-1


[Site "https://www.chess.com"]

[Event "Titled Tuesday Blitz July 11 Late 2023"]
[White "Slovineanu, Viacheslav"]
[Black "Domingo Nunez, Ruben"]
[WhiteFideId "13900510"]
[BlackFideId "22245570"]
[WhiteElo "2378"]
[BlackElo "2549"]
[Result "0-1"]
[Round "6"]
[TimeControl "180+2"]
[Date "2023.07.11"]
[WhiteClock "0:00:10"]
[BlackClock "0:00:57"]
[Board "96"]

1. d4 {[%clk 0:02:56]}  g6 {[%clk 0:03:00]} 2. e4 {[%clk 0:02:54]}  Bg7 {[%clk 0:03:01]} 3. Nc3 {[%clk 0:02:54]}  c6 {[%clk 0:03:01]} 4. f4 {[%clk 0:02:53]}  d5 {[%clk 0:03:02]} 5. e5 {[%clk 0:02:54]}  f6 {[%clk 0:03:03]} 6. Be3 {[%clk 0:02:47]}  Nh6 {[%clk 0:03:03]} 7. h3 {[%clk 0:02:42]}  O-O {[%clk 0:03:02]} 8. Nf3 {[%clk 0:02:38]}  fxe5 {[%clk 0:02:45]} 9. dxe5 {[%clk 0:02:28]}  e6 {[%clk 0:02:36]} 10. Qd2 {[%clk 0:02:19]}  Nd7 {[%clk 0:02:25]} 11. O-O-O {[%clk 0:02:08]}  c5 {[%clk 0:02:10]} 12. Nxd5 {[%clk 0:02:07]}  exd5 {[%clk 0:02:11]} 13. Qxd5+ {[%clk 0:02:07]}  Kh8 {[%clk 0:02:11]} 14. e6 {[%clk 0:02:08]}  Qb6 {[%clk 0:02:12]} 15. exd7 {[%clk 0:01:48]}  Qxb2+ {[%clk 0:02:11]} 16. Kd2 {[%clk 0:01:48]}  Bxd7 {[%clk 0:02:03]} 17. Qb3 {[%clk 0:01:19]}  Qf6 {[%clk 0:01:52]} 18. Bd3 {[%clk 0:01:10]}  b5 {[%clk 0:01:23]} 19. Bxc5 {[%clk 0:00:31]}  Qxf4+ {[%clk 0:01:22]} 20. Ke1 {[%clk 0:00:23]}  Qg3+ {[%clk 0:01:19]} 21. Kf1 {[%clk 0:00:16]}  Rxf3+ {[%clk 0:01:18]} 22. gxf3 {[%clk 0:00:15]}  Qxf3+ {[%clk 0:01:19]} 23. Kg1 {[%clk 0:00:13]}  Qxd1+ {[%clk 0:00:57]} 24. Kg2 {[%clk 0:00:10]}  Bc6+ {[%clk 0:00:57]} 0-1


[Site "https://www.chess.com"]

[Event "Titled Tuesday Blitz July 11 Late 2023"]
[White "only_strong_moves"]
[Black "Davidson, Kevin"]
[BlackFideId "2056810"]
[WhiteElo "2543"]
[BlackElo "2373"]
[Result "1-0"]
[Round "6"]
[TimeControl "180+2"]
[Date "2023.07.11"]
[WhiteClock "0:00:05"]
[BlackClock "0:00:00"]
[Board "97"]

1. d4 {[%clk 0:03:00]}  Nf6 {[%clk 0:02:59]} 2. Nc3 {[%clk 0:03:00]}  d5 {[%clk 0:02:57]} 3. Bf4 {[%clk 0:03:00]}  a6 {[%clk 0:02:56]} 4. e3 {[%clk 0:02:58]}  e6 {[%clk 0:02:55]} 5. Nf3 {[%clk 0:02:59]}  c5 {[%clk 0:02:55]} 6. Be2 {[%clk 0:02:57]}  Nc6 {[%clk 0:02:55]} 7. O-O {[%clk 0:02:56]}  b5 {[%clk 0:02:48]} 8. dxc5 {[%clk 0:02:49]}  Bxc5 {[%clk 0:02:47]} 9. a4 {[%clk 0:02:36]}  b4 {[%clk 0:02:43]} 10. Na2 {[%clk 0:02:35]}  O-O {[%clk 0:02:32]} 11. Nc1 {[%clk 0:02:35]}  a5 {[%clk 0:02:23]} 12. Bb5 {[%clk 0:02:31]}  Bb7 {[%clk 0:02:10]} 13. Nd3 {[%clk 0:02:24]}  Bd6 {[%clk 0:02:08]} 14. c4 {[%clk 0:01:54]}  bxc3 {[%clk 0:02:00]} 15. bxc3 {[%clk 0:01:55]}  Bxf4 {[%clk 0:01:51]} 16. exf4 {[%clk 0:01:53]}  Ne4 {[%clk 0:01:37]} 17. Rc1 {[%clk 0:01:41]}  Qb6 {[%clk 0:00:59]} 18. Nd2 {[%clk 0:01:21]}  Rfd8 {[%clk 0:00:48]} 19. Qe2 {[%clk 0:00:57]}  Nxd2 {[%clk 0:00:34]} 20. Qxd2 {[%clk 0:00:58]}  d4 {[%clk 0:00:33]} 21. c4 {[%clk 0:00:57]}  Rac8 {[%clk 0:00:07]} 22. f3 {[%clk 0:00:47]}  Ne7 {[%clk 0:00:05]} 23. Rfe1 {[%clk 0:00:41]}  Nf5 {[%clk 0:00:05]} 24. c5 {[%clk 0:00:38]}  Qa7 {[%clk 0:00:05]} 25. c6 {[%clk 0:00:29]}  Ba8 {[%clk 0:00:05]} 26. Re5 {[%clk 0:00:26]}  Qb6 {[%clk 0:00:03]} 27. Rec5 {[%clk 0:00:24]}  Rd5 {[%clk 0:00:01]} 28. Rxd5 {[%clk 0:00:23]}  exd5 {[%clk 0:00:02]} 29. Ne5 {[%clk 0:00:19]}  f6 {[%clk 0:00:02]} 30. Nd7 {[%clk 0:00:19]}  Qc7 {[%clk 0:00:02]} 31. h3 {[%clk 0:00:14]}  Qd6 {[%clk 0:00:02]} 32. Nb6 {[%clk 0:00:14]}  Rb8 {[%clk 0:00:01]} 33. c7 {[%clk 0:00:14]}  Qxb6 {[%clk 0:00:01]} 34. c8=Q+ {[%clk 0:00:12]}  Rxc8 {[%clk 0:00:01]} 35. Rxc8+ {[%clk 0:00:13]}  Kf7 {[%clk 0:00:01]} 36. Rxa8 {[%clk 0:00:11]}  Qc7 {[%clk 0:00:01]} 37. Rxa5 {[%clk 0:00:05]}  Kg6 {[%clk 0:00:00]} 38. Be8+ {[%clk 0:00:05]} 1-0


[Site "https://www.chess.com"]

[Event "Titled Tuesday Blitz July 11 Late 2023"]
[White "Tarasova, Viktoriya"]
[Black "Graif, William"]
[WhiteFideId "4175840"]
[BlackFideId "2609835"]
[WhiteElo "2373"]
[BlackElo "2538"]
[Result "0-1"]
[Round "6"]
[TimeControl "180+2"]
[Date "2023.07.11"]
[WhiteClock "0:00:01"]
[BlackClock "0:00:08"]
[Board "98"]

1. d4 {[%clk 0:03:00]}  Nf6 {[%clk 0:02:59]} 2. c4 {[%clk 0:03:01]}  e6 {[%clk 0:02:56]} 3. Nc3 {[%clk 0:03:00]}  Bb4 {[%clk 0:02:56]} 4. Nf3 {[%clk 0:03:00]}  O-O {[%clk 0:02:52]} 5. Bg5 {[%clk 0:02:57]}  h6 {[%clk 0:02:50]} 6. Bh4 {[%clk 0:02:57]}  g5 {[%clk 0:02:40]} 7. Bg3 {[%clk 0:02:56]}  Ne4 {[%clk 0:02:40]} 8. Qc2 {[%clk 0:02:56]}  f5 {[%clk 0:02:38]} 9. Nd2 {[%clk 0:02:48]}  Nxd2 {[%clk 0:02:27]} 10. Kxd2 {[%clk 0:02:42]}  Qf6 {[%clk 0:02:14]} 11. Be5 {[%clk 0:02:13]}  Qd8 {[%clk 0:02:03]} 12. h4 {[%clk 0:02:10]}  g4 {[%clk 0:02:01]} 13. e3 {[%clk 0:02:06]}  b6 {[%clk 0:01:48]} 14. a3 {[%clk 0:02:00]}  Bxc3+ {[%clk 0:01:42]} 15. Qxc3 {[%clk 0:01:59]}  d6 {[%clk 0:01:42]} 16. Bf4 {[%clk 0:02:00]}  h5 {[%clk 0:01:31]} 17. Be2 {[%clk 0:01:59]}  Bb7 {[%clk 0:01:31]} 18. f3 {[%clk 0:01:57]}  Nd7 {[%clk 0:01:20]} 19. Rad1 {[%clk 0:01:56]}  Nf6 {[%clk 0:01:08]} 20. Kc1 {[%clk 0:01:56]}  Qe7 {[%clk 0:00:58]} 21. Kb1 {[%clk 0:01:54]}  Rae8 {[%clk 0:00:55]} 22. Bg5 {[%clk 0:01:41]}  Qf7 {[%clk 0:00:51]} 23. Bh6 {[%clk 0:01:39]}  e5 {[%clk 0:00:43]} 24. Bxf8 {[%clk 0:01:36]}  Kxf8 {[%clk 0:00:42]} 25. dxe5 {[%clk 0:01:35]}  Rxe5 {[%clk 0:00:40]} 26. Rhe1 {[%clk 0:01:15]}  Qe7 {[%clk 0:00:39]} 27. e4 {[%clk 0:00:52]}  fxe4 {[%clk 0:00:35]} 28. fxg4 {[%clk 0:00:51]}  hxg4 {[%clk 0:00:32]} 29. Qe3 {[%clk 0:00:48]}  Ke8 {[%clk 0:00:28]} 30. Rf1 {[%clk 0:00:47]}  Re6 {[%clk 0:00:19]} 31. h5 {[%clk 0:00:40]}  Kd7 {[%clk 0:00:14]} 32. h6 {[%clk 0:00:34]}  Qh7 {[%clk 0:00:13]} 33. Rf2 {[%clk 0:00:20]}  g3 {[%clk 0:00:11]} 34. Qxg3 {[%clk 0:00:19]}  e3+ {[%clk 0:00:12]} 35. Ka1 {[%clk 0:00:19]}  exf2 {[%clk 0:00:11]} 36. Qxf2 {[%clk 0:00:18]}  Qxh6 {[%clk 0:00:11]} 37. Qf5 {[%clk 0:00:10]}  Qe3 {[%clk 0:00:09]} 38. Bg4 {[%clk 0:00:07]}  Nxg4 {[%clk 0:00:08]} 39. Qxg4 {[%clk 0:00:07]}  Qe2 {[%clk 0:00:07]} 40. Qg7+ {[%clk 0:00:01]}  Re7 {[%clk 0:00:08]} 0-1


[Site "https://www.chess.com"]

[Event "Titled Tuesday Blitz July 11 Late 2023"]
[White "Bobkov, Vadim"]
[Black "ArturoCaceres"]
[WhiteFideId "34110876"]
[WhiteElo "2531"]
[BlackElo "2372"]
[Result "0-1"]
[Round "6"]
[TimeControl "180+2"]
[Date "2023.07.11"]
[WhiteClock "0:00:07"]
[BlackClock "0:01:16"]
[Board "99"]

1. d4 {[%clk 0:03:00]}  e6 {[%clk 0:02:59]} 2. c4 {[%clk 0:02:58]}  d5 {[%clk 0:02:59]} 3. Nc3 {[%clk 0:02:58]}  dxc4 {[%clk 0:02:55]} 4. e4 {[%clk 0:02:50]}  c5 {[%clk 0:02:53]} 5. d5 {[%clk 0:02:40]}  exd5 {[%clk 0:02:52]} 6. Nxd5 {[%clk 0:02:37]}  Be6 {[%clk 0:02:45]} 7. Bxc4 {[%clk 0:02:34]}  Nc6 {[%clk 0:02:46]} 8. Ne2 {[%clk 0:02:27]}  Nf6 {[%clk 0:02:44]} 9. Nec3 {[%clk 0:02:19]}  Nd4 {[%clk 0:02:26]} 10. O-O {[%clk 0:02:02]}  Nxe4 {[%clk 0:02:22]} 11. Bf4 {[%clk 0:01:42]}  Nxc3 {[%clk 0:01:44]} 12. bxc3 {[%clk 0:01:30]}  Bxd5 {[%clk 0:01:44]} 13. Bxd5 {[%clk 0:01:21]}  Qxd5 {[%clk 0:01:45]} 14. Re1+ {[%clk 0:00:59]}  Be7 {[%clk 0:01:38]} 15. cxd4 {[%clk 0:00:57]}  Qd7 {[%clk 0:01:30]} 16. dxc5 {[%clk 0:00:40]}  O-O-O {[%clk 0:01:23]} 17. Rxe7 {[%clk 0:00:07]}  Qxd1+ {[%clk 0:01:16]} 0-1


[Site "https://www.chess.com"]